Cogmind - Beta 10 @@@ ROGUE MODE // 2020.09.19 @ 08:48:22 Player: Sysh Result: Destroyed by S-10 Pest with Light Assault Rifle Performance ------------- Evolutions (0) 0 Regions Visited (4) 800 Robots Destroyed (36) 180 Value Destroyed (980) 980 Prototype IDs (2) 40 Alien Tech Used (0) 0 Bonus (-112) -112 TOTAL SCORE: 1888 Bonus ------- Friendly Fire -112 Cogmind --------- Core Integrity 0/250 Matter 287/300 Energy 52/100 System Corruption 1% Temperature Cool (101) Movement Rolling (110) Ox1 Location -9/Mines Parts ------- > --- POWER (1) -------- (None) > --- PROPULSION (2) --- Carbon-fiber Leg Compact Wheel > --- UTILITY (2) ------ Large Storage Unit Core Shielding > --- WEAPON (2) ------- Beamcaster Light Assault Rifle > --- INVENTORY (10) --- Carbon-fiber Leg Small Storage Unit Medium Storage Unit Medium Storage Unit Large Storage Unit Humpback Improved Sensor Array Experimental Sensor Array Plasma Cutter Peak State ------------ > --- POWER ------------ Light Ion Engine > --- PROPULSION ------- Carbon-fiber Leg Compact Wheel > --- UTILITY ---------- Small Storage Unit Large Storage Unit > --- WEAPON ----------- Beamcaster Light Assault Rifle > --- INVENTORY -------- Carbon-fiber Leg Small Storage Unit Medium Storage Unit Medium Storage Unit Large Storage Unit Humpback Improved Sensor Array Experimental Sensor Array Core Shielding Mining Laser Plasma Cutter [Rating: 15] Favorites ----------- Power Light Ion Engine Engine Light Ion Engine Propulsion Light Treads Treads Light Treads Leg Carbon-fiber Leg Wheel Compact Wheel Utility Small Storage Unit Storage Small Storage Unit Protection Core Shielding Weapon Light Cannon Energy Gun Medium Laser Ballistic Gun Assault Rifle Ballistic Cannon Light Cannon Build | -11 -10 -10 -10 -9 ------- Run | Scr Mat Min Exi Min Slots Evolved . | . . . . . Power . | . . . . . Propulsion . | . . . . . Utility . | . . . . . Weapon . | . . . . . Parts Attached 22 | 7 8 3 . 4 Power 4 | 2 1 1 . . Engine 4 | 2 1 1 . . Core . | . . . . . Reactor . | . . . . . Propulsion 6 | 2 1 2 . 1 Treads 2 | 2 . . . . Leg 1 | . . . . 1 Wheel 3 | . 1 2 . . Hover . | . . . . . Flight . | . . . . . Utility 4 | 1 2 . . 1 Device . | . . . . . Storage 3 | 1 2 . . . Processor . | . . . . . Hackware . | . . . . . Protection 1 | . . . . 1 Artifact . | . . . . . Weapon 8 | 2 4 . . 2 Energy Gun 4 | 1 2 . . 1 Energy Cannon . | . . . . . Ballistic Gun 3 | 1 1 . . 1 Ballistic Cannon 1 | . 1 . . . Launcher . | . . . . . Special Weapon . | . . . . . Impact Weapon . | . . . . . Slashing Weapon . | . . . . . Piercing Weapon . | . . . . . Special Melee Weapon . | . . . . . Unidentified Prototypes . | . . . . . Parts Lost 11 | . 6 1 . 4 Power 3 | . 2 . . 1 Propulsion 3 | . 1 1 . 1 Utility . | . . . . . Weapon 5 | . 3 . . 2 Highest Loss Streak 3 | . 2 1 . 3 Average Slot Usage (%) 95 | . 95 90 100 97 Engine 10 | . 10 5 14 13 Treads 11 | . 20 8 . . Wheel 15 | . 6 19 28 19 Storage 27 | . 27 28 28 27 Energy Gun 4 | . 8 . . 8 Ballistic Gun 11 | . 8 14 14 14 Ballistic Cannon 11 | . 11 14 14 5 Naked Turns . | . . . . . Heaviest Build 30 | 12 30 28 28 29 Greatest Support 40 | 40 40 26 26 26 Greatest Overweight (x) 1 | 1 1 1 1 1 Average Overweight (x) . | . . . 1 1 Largest Inventory Capacity 12 | 6 12 12 12 12 Average Capacity 11 | 5 11 12 12 11 Most Carried 12 | 6 12 12 12 12 Average Carried 11 | 5 11 11 11 11 Final Capacity 12 | 6 12 12 12 10 Final Carried 12 | 6 12 12 12 10 Class Distribution -------------------- 94% | Mutant 5% | Scavenger-Mutant Dominant Class ---------------- Mutant | -10/Materials Mutant | -10/Mines Mutant | -10/Exiles Mutant | -9/Mines Resources | -11 -10 -10 -10 -9 ----------- Run | Scr Mat Min Exi Min Matter Collected 836 | 200 431 133 . 72 Remotely . | . . . . . Salvage Created 1043 | . 755 174 . 114 Parts 71 | . 48 16 . 7 Haulers Intercepted . | . . . . . Recyclers Shooed . | . . . . . Parts Field Recycled . | . . . . . Retrieved Matter . | . . . . . Parts Self-Destructed . | . . . . . Prevented . | . . . . . Kills | -11 -10 -10 -10 -9 ------- Run | Scr Mat Min Exi Min Combat Hostiles Destroyed 30 | . 21 4 . 5 Guns 17 | . 11 2 . 4 Cannons 13 | . 10 2 . 1 Classes Destroyed 6 | . 4 1 . 1 Builder 1 | . 1 . . . Tunneler 1 | . . 1 . . Watcher 3 | . 3 . . . Swarmer 8 | . 3 3 . 2 Grunt 21 | . 18 1 . 2 Duelist 1 | . . . . 1 Thug 1 | . . 1 . . Best Kill Streak 4 | . 4 3 . 2 Combat Bots Only 4 | . 4 3 . 2 Max Kills in Single Turn 2 | . 2 1 . 1 Gunslinging . | . . . . . Exploded . | . . . . . Melee . | . . . . . Uniques/NPCs Destroyed . | . . . . . Combat | -11 -10 -10 -10 -9 -------- Run | Scr Mat Min Exi Min Damage Taken 1439 | . 955 156 . 328 Core 256 | . 155 36 . 65 Absorbed by Shields . | . . . . . Core Remaining (%) 100 | 100 . . . . Volleys Fired 124 | . 81 16 . 27 Largest 2 | . 2 2 . 2 Hottest 95 | . 85 55 . 95 Shots Fired 234 | . 153 31 . 50 Gun 157 | . 97 16 . 44 Cannon 77 | . 56 15 . 6 Launcher . | . . . . . Special . | . . . . . Kinetic 158 | . 94 31 . 33 Thermal 58 | . 41 . . 17 Explosive . | . . . . . Electromagnetic 18 | . 18 . . . Robot Hit Streak 12 | . 12 4 . 7 Robot Miss Streak 10 | . 5 10 . 5 Penetration Max . | . . . . . Secondary Targets 2 | . . . . 2 Max Gunslinging Chain 1 | . . . . 1 Shots Hit Robots 134 | . 93 14 . 27 Core Hits 57 | . 44 7 . 6 Critical Hits 2 | . 2 . . . Critical Kills . | . . . . . Critical Parts Destroyed 2 | . 2 . . . Melee Attacks . | . . . . . Impact . | . . . . . Slashing . | . . . . . Piercing . | . . . . . Sneak Attacks . | . . . . . Combat Hostiles . | . . . . . Follow-up Attacks . | . . . . . Damage Inflicted 2144 | . 1412 309 . 423 Guns 1260 | . 803 123 . 334 Cannons 847 | . 572 186 . 89 Explosions 37 | . 37 . . . Melee . | . . . . . Ramming . | . . . . . Kinetic 1409 | . 868 309 . 232 Thermal 614 | . 423 . . 191 Explosive . | . . . . . Electromagnetic 121 | . 121 . . . Impact . | . . . . . Slashing . | . . . . . Piercing . | . . . . . Highest Corruption 1 | . 1 1 1 1 Average Corruption 1 | . 1 1 1 1 Corruption Purged . | . . . . . Effects 15 | . 7 3 4 1 Message Errors 6 | . 2 2 1 1 Energy Discharges 4 | . 2 . 2 . Data Loss (minor) 2 | . 1 . 1 . Targeting Errors 2 | . 2 . . . Weapon Failures 1 | . . 1 . . Overload Shots . | . . . . . Overflow Damage 15 | . 7 8 . . Projectiles 14 | . 6 8 . . Explosions 1 | . 1 . . . Melee . | . . . . . Knockbacks 14 | . 8 4 . 2 Impact . | . . . . . Kinetic 14 | . 8 4 . 2 Secondary . | . . . . . Self-Inflicted Damage 37 | . 37 . . . Shots 1 | . 1 . . . Rammed . | . . . . . Targets Rammed . | . . . . . Kicked . | . . . . . Crushed . | . . . . . Highest Temperature 360 | . 198 2 . 360 Average Temperature 68 | . 47 2 . 130 Received Heat Transfer 630 | . 477 51 . 102 Siege Activations . | . . . . . Robots Corrupted . | . . . . . Combat Hostiles . | . . . . . Parts Fried . | . . . . . Impact Corruptions . | . . . . . Robots Melted . | . . . . . Combat Hostiles . | . . . . . Parts Melted 2 | . 2 . . . Heat Transferred 1530 | . 1197 . . 333 Parts Sabotaged . | . . . . . Parts Stolen . | . . . . . Parts Stripped . | . . . . . Power Chain Reactions 1 | . 1 . . . Missiles Intercepted . | . . . . . Alert | -11 -10 -10 -10 -9 ------- Run | Scr Mat Min Exi Min Peak Influence 418 | . 418 147 . 80 Initial 106 | . . 106 . . Average 152 | . 238 80 . 35 Maximum Alert Level 2 | . 2 . . . Low Security (%) 69 | 100 39 100 . 100 Level 1 26 | . 52 . . . Level 2 4 | . 8 . . . Level 3 . | . . . . . Level 4 . | . . . . . Level 5 . | . . . . . High Security . | . . . . . Max Security . | . . . . . Squads Dispatched 7 | . 7 . . . Investigation 5 | . 5 . . . Extermination . | . . . . . Reinforcement 2 | . 2 . . . Assault . | . . . . . Garrison . | . . . . . Intercept . | . . . . . Construction Impeded . | . . . . . Haulers Reinforced . | . . . . . Stealth | -11 -10 -10 -10 -9 --------- Run | Scr Mat Min Exi Min Distress Signals 3 | . 3 . . . Communications Jammed . | . . . . . Distress Signals . | . . . . . Times Spotted 48 | . 34 5 . 9 Peak Tracking Total 4 | . 4 3 . 4 Tactical Retreats 5 | . 3 1 . 1 Traps | -11 -10 -10 -10 -9 ------- Run | Scr Mat Min Exi Min Traps Triggered 4 | . 4 . . . Indirectly . | . . . . . Trap Hack Attempts . | . . . . . Triggered . | . . . . . Disarmed . | . . . . . Reprogrammed . | . . . . . Reused . | . . . . . Traps Extracted . | . . . . . Installed . | . . . . . Triggered 3 | . 1 . . 2 Machines | -11 -10 -10 -10 -9 ---------- Run | Scr Mat Min Exi Min Machines Disabled 4 | . 3 1 . . Max in Single Turn 2 | . 2 . . . Machines Sabotaged . | . . . . . Garrisons Compromised . | . . . . . Overloaded Fab Kills . | . . . . . Fab Network Shutdowns . | . . . . . Hacking | -11 -10 -10 -10 -9 --------- Run | Scr Mat Min Exi Min Machines Accessed 11 | . 7 . 4 . Terminals 6 | . 6 . . . Fabricators . | . . . . . Repair Stations 1 | . 1 . . . Recycling Units . | . . . . . Scanalyzers . | . . . . . Garrison Access . | . . . . . Total Hacks 76 | . 27 . 49 . Successful 66 | . 17 . 49 . Failed 9 | . 9 . . . Catastrophic 2 | . 2 . . . Database Lockouts 1 | . 1 . . . Manual . | . . . . . Terminals 25 | . 25 . . . Fabricators . | . . . . . Repair Stations 2 | . 2 . . . Recycling Units . | . . . . . Scanalyzers . | . . . . . Garrison Access . | . . . . . Terminal Hacks 64 | . 15 . 49 . Record 57 | . 8 . 49 . Robot Analysis 1 | . 1 . . . Prototype ID Bank 1 | . 1 . . . Emergency Access Points 1 | . 1 . . . Transport Status 1 | . 1 . . . Recall Investigation 1 | . 1 . . . Registered Components 1 | . 1 . . . Zone Layout 1 | . 1 . . . Fabricator Hacks . | . . . . . Repair Station Hacks 2 | . 2 . . . Scan Component 1 | . 1 . . . Repair 1 | . 1 . . . Recycling Unit Hacks . | . . . . . Scanalyzer . | . . . . . Garrison Access Hacks . | . . . . . Unauthorized Hacks . | . . . . . Terminals . | . . . . . Fabricators . | . . . . . Repair Stations . | . . . . . Recycling Units . | . . . . . Scanalyzers . | . . . . . Garrison Access . | . . . . . Data Cores Recovered . | . . . . . Used . | . . . . . Hacking Detections 5 | . 5 . . . Full Trace Events 1 | . 1 . . . Feedback Events 1 | . 1 . . . Corruption 1 | . 1 . . . Feedback Blocked . | . . . . . Robot Schematics Acquired . | . . . . . Robots Built . | . . . . . Matter . | . . . . . Time . | . . . . . Total Robot Build Rating . | . . . . . Part Schematics Acquired . | . . . . . Parts Built . | . . . . . Matter . | . . . . . Time . | . . . . . Total Part Build Rating . | . . . . . Parts Repaired 1 | . 1 . . . Time 26 | . 26 . . . Parts Recycled . | . . . . . Recycled Matter . | . . . . . Retrieved Matter . | . . . . . Retrieved Components . | . . . . . Parts Scanalyzed . | . . . . . Part Schematics Acquired . | . . . . . Parts Damaged . | . . . . . Bothacking | -11 -10 -10 -10 -9 ------------ Run | Scr Mat Min Exi Min Used RIF Installer . | . . . . . Robots Hacked . | . . . . . Non-combat . | . . . . . Combat . | . . . . . Robot Hacks Applied . | . . . . . Relay Couplers Released . | . . . . . Robots Rewired . | . . . . . Allies Hacked . | . . . . . Hacks Repelled . | . . . . . Allies | -11 -10 -10 -10 -9 -------- Run | Scr Mat Min Exi Min Total Allies 1 | . . 1 . . Largest Group 1 | . . 1 . . Highest-Rated Group 31 | . . 31 . . Highest-Rated Ally 31 | . . 31 . . Total Orders . | . . . . . Ally Attacks 5 | . . 5 . . Total Damage 42 | . . 42 . . Kills . | . . . . . Allies Corrupted . | . . . . . Allies Melted . | . . . . . Intel | -11 -10 -10 -10 -9 ------- Run | Scr Mat Min Exi Min Robot Analysis Total 1 | . 1 . . . Derelict Logs Recovered 3 | . . 1 . 2 Drone Launches . | . . . . . Drone Recoveries . | . . . . . Exploration | -11 -10 -10 -10 -9 ------------- Run | Scr Mat Min Exi Min Turns Passed 3139 | 68 1325 789 565 392 Spaces Moved 2360 | 41 821 688 563 247 Core 15 | 15 . . . . Treads 330 | 26 304 . . . Legs . | . . . . . Wheels 2015 | . 517 688 563 247 Hover . | . . . . . Flight . | . . . . . Fastest Speed 50 | 50 110 90 100 100 Average Speed 112 | 125 128 105 100 106 Slowest Speed 180 | 160 180 110 100 110 Overloaded Moves . | . . . . . Propulsion Burnouts . | . . . . . Robots Hopped . | . . . . . Cave-ins Triggered . | . . . . . Exploration Rate (%) 67 | 4 99 89 90 57 Regions Visited 4 Branch Regions 3 Pre-discovered Areas 2 | . . . 1 1 Known Exits Taken . | . . . . . Unknown Exits Taken 4 | 1 1 1 1 . Scrap Searched 3 | . . 2 . 1 Spaces Dug . | . . . . . Terrain Destroyed 5 | . 5 . . . Melee . | . . . . . Projectile . | . . . . . AOE 5 | . 5 . . . Terrain Rammed . | . . . . . Walls Destroyed . | . . . . . Machines Disabled . | . . . . . Actions | -11 -10 -10 -10 -9 --------- Run | Scr Mat Min Exi Min Total 2611 | 56 941 719 565 330 Wait 70 | . 18 3 . 49 Move 2356 | 40 820 687 562 247 Hop . | . . . . . Pick Up 32 | 9 13 6 1 3 Fast Attach 4 | 3 1 . . . Attach 14 | 3 6 2 . 3 Detach . | . . . . . Swap 4 | 1 1 1 . 1 Drop 7 | . 1 4 2 . Fire 124 | . 81 16 . 27 Melee . | . . . . . Ram . | . . . . . Kick . | . . . . . Crush . | . . . . . Escape Stasis . | . . . . . Rewire . | . . . . . Trap . | . . . . . Miscellaneous . | . . . . . Route ------- -11/Scrapyard -10/Materials (discovered 5 exits: [*Mat x3] / [*Min x2]) -10/Mines (discovered 2 exits: [*Mat] / *Exi) -10/Exiles -9/Mines (discovered 2 exits: [*Mat x2]) History --------- Turn | Location | Event 41 | -11/Scrapyard | Discovered new exit (range 15) 69 | -11/Scrapyard | Entered Materials 250 | -10/Materials | Repaired EM Pulse Gun 310 | -10/Materials | Build established: Mutant 430 | -10/Materials | Discovered new exit (range 8) 563 | -10/Materials | Central database locked down 790 | -10/Materials | Discovered new exit (range 8) 879 | -10/Materials | Discovered new exit (range 15) 988 | -10/Materials | Discovered new exit (range 9) 1003 | -10/Materials | Core integrity fell below 50% 1253 | -10/Materials | Discovered new exit (range 15) 1394 | -10/Materials | Entered Mines 1418 | -10/Mines | Learned Materials non-interactive machine intel 1608 | -10/Mines | Deemed a non-threat by the Exiles lab entrance 1608 | -10/Mines | Discovered new exit (range 5) 1649 | -10/Mines | Received a Mining Laser from a helpful Derelict 1905 | -10/Mines | Discovered new exit (range 7) 2183 | -10/Mines | Entered Exiles 2206 | -10/Exiles | Met 8R-AWN 2224 | -10/Exiles | Met EX-HEX 2251 | -10/Exiles | Met EX-BIN 2322 | -10/Exiles | Met EX-DEC 2330 | -10/Exiles | Learned location of Zion (-7) 2380 | -10/Exiles | Discovered new exit (range 14) 2456 | -10/Exiles | Visited The Gauntlet 2748 | -10/Exiles | Entered Mines 2749 | -9/Mines | Learned location of Storage (-9) 2766 | -9/Mines | Met a Derelict bent on vengeance 2780 | -9/Mines | Discovered new exit (range 5) 2875 | -9/Mines | Discovered new exit (range 3) 2888 | -9/Mines | Core integrity fell below 20% 2925 | -9/Mines | Lost 3 parts (1n2w) 2975 | -9/Mines | Learned Materials trap positions 3119 | -9/Mines | Learned Materials terminal intel 3125 | -9/Mines | Found a damaged Exp. Sensor Array with a note attached 3128 | -9/Mines | Found Prototype Device 3140 | -9/Mines | Destroyed by S-10 Pest with Light Assault Rifle Last Messages --------------- Data stored: Materials trap records. FA I2JTT=PSXXB#MN,R7YDG S-10 Pest destroyed. K-01 Serf collects debris. Acquired derelict log, extracted data. Data stored: Materials terminal intel. A damaged part is partially visible under some rubble. There's a note attached: "Everyone keeps telling us we should avoid high-traffic areas because that's where patrols are more likely to show up, but that doesn't do us much good if we can't spot those areas until they're on top of us... With this we can! Deliver it to Megawrench for repairs then we'll never be afraid of an ambush while sneaking around Materials again, ha." Acquired Prototype Device. Lgt. Ion Engine destroyed. S-10 Pest destroyed. Switching to secondary target: S-10 Pest. Map ----- +----------------------------------------------------+ | ??????# #??????????????????????????????????? | | ??????# #??????????????????????????????????? | | ??????# #??????????????????????????????????? | | ??????# #??????????????????????????????????? | | ??????# #####??????????????????????????????? | | ?????## ## ##?????????????????????????????? | | ????## ##????????????????????????????? | | ????# #????????????????????????????? | | ????# #????????????????????????????? | | ????# #????????????????????????????? | | ????## ##????????????????????????????? | | ?????## #####?????????????????????????????? | | ??????####?????????????????????????????????? | | ???????????????????????????????????????????? | | ???????????????????????????????????????????? | | ???????????????????????????????????????????? | | ???????????????????????????????????????????? | | ???????????????????????????????????????????? | | ???????????????????????????????????????????? | | ???????????????????????????????????????????? | | ???????????????????????????????????????????? | | ???????????????????????????????????????????? | | ???????????????????????#####???????????????? | | ????????????????????#### ##??????????????? | | ???????????????????## #??????????????? | | ???????????????????# |@ #??????????????? | | ???????????????????# ####??????????????? | | ???????????????????# =%s##?????????????????? | | ???????????????????## ##??????????????????? | | ????????????#########k##???????????????????? | | ??????#######[ #????????????????????? | | ??"" %=%[=*###### #????????????????????? | | ??"" ######## #????# #????????????????????? | | ?????????????# #???? ????????????????????? | | ?????????????# #????####???????????????????? | | ??????######## #???????????????????????????? | | #?????# #???????????????????????????? | | ####### ###### #???????????????????????????? | | #????# #???????????????????????????? | | #########????# #???????????????????????????? | | ?????????????# #???????????????????????????? | | ?????????##### #???????????????????????????? | | ?????????# #???????????????????????????? | | ?????????# #####???????????????????????????? | | ?????????# #???????????????????????????????? | | ?????????# ###?????????????????????????????? | | ?####???## ##????????????????????????????? | | ## ##??# #????????????????????????????? | | # #### #????????????????????????????? | | ## #????????????????????????????? | +----------------------------------------------------+ Best States ------------- Heat Dissipation 25 Energy Generation 10 Energy Capacity 250 Matter Stores 300 Matter Capacity 300 Sight Range 16 Terrain Scan Density 10 Core Shielding 20 Evasion (%) 50 Recoil Reduction 2 Item Schematics ----------------- None Robot Schematics ------------------ None Fabricated ------------ Nothing Alien Tech Used ----------------- None Achievements -------------- GoHome() Party Time Challenges ------------ None Game ------ Seed LayeredSpikedReactor Manual? 0 Play Time 00:28:55 Cumulative 7.5 hours Start 2020.09.19 @ 08:21:50 End 2020.09.19 @ 08:48:22 Sessions 1 Manual Loads 0 Difficulty Rogue Special Mode None Game No. 21 Rogue 21 Adventurer 0 Explorer 0 Win Type - Total 0 Types 0/0/0/0/0/0/0/0/0 Lore% 17 Gallery% 13 Achievement% 13 Wizard Run 0 Options --------- ASCII 0 Keyboard 0 Movement Numpad Keybinds 0 Fullscreen 1 Font 18/SmallcapsGlow Map View 76x50 Tactical HUD 0 Map Filters NONE Filters NONE Steam 1 RUN: 0836f277-1422-43d8-9c56-9c5b0be692d3